bitfinex-derivatives/quotes_BNBF0:USTF0_20230901
["timestamp","ask_amount","ask_price","bid_price","bid_amount"]
[1693592757970,0.17359574,212.15,211.6,0.8681176]
[1693592758170,0.17359574,212.16,211.6,0.8681176]
[1693592758374,0.17359574,212.15,211.6,0.8681176]
[1693592758574,0.17359574,212.14,211.6,0.8681176]
[1693592758774,0.17359574,212.13,211.6,0.8681176]
[1693592759073,0.17359574,212.12,211.6,0.8681176]
[1693592759271,0.17359574,212.11,211.6,0.8681176]
[1693592759476,0.17359574,212.17,211.6,0.8681176]
[1693592759672,0.17359574,212.1,211.6,0.8681176]
[1693592759871,0.17359574,212.09,211.6,0.8681176]
[1693592760172,0.17359574,212.08,211.6,0.8681176]
[1693592760373,0.17359574,212.17,211.6,0.8681176]
[1693592760568,0.17359574,212.16,211.6,0.8681176]
[1693592760770,0.17359574,212.17,211.6,0.8681176]
[1693592760968,0.17359574,212.16,211.6,0.8681176]
[1693592761171,0.17359574,212.17,211.6,0.8681176]
[1693592761373,0.17359574,212.16,211.6,0.8681176]
[1693592761566,5.31014871,212.17,211.6,0.8681176]
[1693592761772,0.17359574,212.16,211.6,0.8681176]
[1693592762170,0.17359574,212.17,211.6,0.8681176]
[1693592762368,0.17359574,212.16,211.6,0.8681176]
[1693592762567,0.17359574,212.17,211.6,0.8681176]
[1693592764371,0.17359574,212.17,211.6,0.94497571]
[1693592764569,0.17359574,212.17,211.61,0.8681176]
[1693592765675,0.17359574,212.17,211.61,0.94497571]
[1693592765875,0.17359574,212.17,211.62,0.8681176]
[1693592766273,5.31014871,212.17,211.62,0.8681176]
[1693592766474,0.17359574,212.16,211.62,0.8681176]
[1693592767674,0.17359574,212.16,211.62,0.94497571]
[1693592767873,0.17359574,212.16,211.63,0.8681176]
[1693592770883,0.17359574,212.17,211.63,0.8681176]
[1693592771083,0.17359574,212.16,211.63,0.8681176]
[1693592771383,0.17359574,212.15,211.63,0.8681176]
[1693592771584,0.17359574,212.14,211.63,0.8681176]
[1693592771777,0.17359574,212.13,211.63,0.8681176]
[1693592771981,0.17359574,212.16,211.63,0.8681176]
[1693592772179,0.17359574,212.15,211.63,0.8681176]
[1693592772482,0.17359574,212.14,211.63,0.8681176]
[1693592772785,0.17359574,212.13,211.63,0.8681176]
[1693592772985,0.17359574,212.12,211.63,0.8681176]
[1693592773186,0.17359574,212.11,211.63,0.8681176]
[1693592773384,0.17359574,212.1,211.63,0.8681176]
[1693592773580,0.17359574,212.09,211.63,0.94497571]
[1693592773784,5.13655297,212.18,211.63,0.94497571]
[1693592773785,5.31014871,212.17,211.64,0.8681176]
[1693592773982,0.17359574,212.16,211.64,0.8681176]
[1693592774187,0.17359574,212.17,211.64,0.8681176]
[1693592774387,0.17359574,212.16,211.64,0.8681176]
[1693592774581,5.31014871,212.17,211.64,0.8681176]
[1693592774783,0.17359574,212.16,211.64,0.8681176]
[1693592778695,0.17359574,212.16,211.64,0.94497571]
[1693592778896,0.17359574,212.16,211.65,0.8681176]
[1693592779697,0.17359574,212.16,211.64,0.8681176]
[1693592779997,0.17359574,212.16,211.65,0.86814931]
[1693592780291,0.17359574,212.16,211.63,0.07685811]
[1693592780495,0.17359574,212.16,211.64,0.86815122]
[1693592780696,0.17359574,212.16,211.64,0.94500933]
[1693592780896,0.17359574,212.16,211.65,0.86815122]
[1693592781491,5.31014871,212.16,211.65,0.86815122]
[1693592781692,0.17359574,212.15,211.65,0.86815122]
[1693592783492,5.31014871,212.15,211.65,0.86815122]
[1693592783695,0.17359574,212.14,211.65,0.86815122]
[1693592784800,0.17359574,212.14,211.64,0.07685811]
[1693592785399,0.17359574,212.14,211.65,0.86815178]
[1693592785595,0.17359574,212.14,211.64,0.07685811]
[1693592785800,5.31014871,212.14,211.64,0.07685811]
[1693592786000,0.17359574,212.13,211.65,0.07685811]
[1693592786597,5.31014871,212.13,211.65,0.07685811]
[1693592786802,0.17359574,212.12,211.65,0.07685811]
[1693592787502,5.31014871,212.12,211.66,0.07685811]
[1693592787701,0.17359574,212.11,211.66,0.07685811]
[1693592788701,5.13655297,212.1,211.66,0.07685811]
[1693592788902,0.17359574,212.09,211.66,0.07685811]
[1693592789603,0.17359574,212.09,211.68,0.07685811]
[1693592790000,5.13655297,212.08,211.68,0.07685811]
[1693592790203,0.17359574,212.07,211.68,0.07685811]
[1693592790602,5.31014871,212.07,211.68,0.07685811]
[1693592790803,0.17359574,212.06,211.68,0.07685811]
[1693592791904,0.17359574,212.06,211.67,0.07685811]
[1693592792107,5.31014871,212.06,211.67,0.07685811]
[1693592792404,0.17359574,212.05,211.67,0.07685811]
[1693592793908,5.31014871,212.05,211.67,0.07685811]
[1693592794108,0.17359574,212.04,211.67,0.07685811]
[1693592795906,0.17359574,212.04,211.6,0.15371623]
[1693592795907,0.17359574,212.04,211.66,0.07685811]
[1693592796408,5.31014871,212.04,211.66,0.07685811]
[1693592796609,0.17359574,212.03,211.66,0.07685811]
[1693592797709,0.17359574,212.03,211.65,0.07685811]
[1693592799710,0.17359574,212.03,211.64,0.07685811]
[1693592803515,0.17359574,212.03,211.64,0.07732259]
[1693592805615,0.17359574,212.03,211.63,0.07732259]
[1693592805814,5.33726589,212.03,211.63,0.07732259]
[1693592806010,0.17359574,212.02,211.63,0.07732259]
[1693592807716,0.17359574,212.02,211.62,0.07732259]
[1693592808216,0.17359574,212.02,211.63,0.07732259]
[1693592808811,0.17359574,212.03,211.63,0.07732259]
[1693592809015,0.17359574,212.02,211.63,0.07732259]
[1693592809210,0.17359574,212.03,211.63,0.07732259]
[1693592809410,0.17359574,212.02,211.63,0.07732259]
[1693592809617,0.17359574,212.03,211.63,0.07732259]
[1693592809818,0.17359574,212.02,211.63,0.07732259]
[1693592810815,0.17359574,212.02,211.62,0.07732259]
[1693592811918,0.17359574,212.02,211.63,0.07732259]
[1693592812119,0.17359574,212.02,211.62,0.07732259]
[1693592819719,0.17359574,212.02,211.63,0.07732259]
[1693592820318,0.17359574,212.02,211.62,0.07732259]
[1693592821020,0.17359574,212.02,211.63,0.07732259]
[1693592821220,0.17359574,212.02,211.62,0.07732259]
[1693592822719,0.17359574,212.02,211.63,0.07732259]
[1693592825020,5.33726589,212.02,211.63,0.07732259]
[1693592825222,0.17359574,212.01,211.63,0.07732259]
[1693592827829,0.17359574,212.01,211.64,0.07732259]
[1693592828126,0.17359574,212.0,211.64,0.07732259]
[1693592828326,0.17359574,212.02,211.64,0.07732259]
[1693592828528,0.17359574,212.01,211.64,0.07732259]
[1693592828721,0.17359574,212.02,211.64,0.07732259]
[1693592829025,0.17359574,212.01,211.64,0.07732259]
[1693592829226,0.17359574,212.02,211.64,0.07732259]
[1693592829427,0.17359574,212.01,211.64,0.07732259]
[1693592829628,0.17359574,212.02,211.64,0.07732259]
[1693592829828,0.17359574,212.01,211.64,0.07732259]
[1693592830128,0.17359574,212.0,211.64,0.07732259]
[1693592830329,0.17359574,211.99,211.64,0.07732259]
[1693592830523,0.17359574,212.02,211.64,0.07732259]
[1693592830725,0.17359574,212.01,211.64,0.07732259]
[1693592830927,0.17359574,212.0,211.64,0.07732259]
[1693592831126,0.17359574,211.99,211.64,0.07732259]
[1693592831320,0.17359574,211.98,211.64,0.07732259]
[1693592831525,0.17359574,211.97,211.64,0.07732259]
[1693592831726,0.17359574,212.03,211.64,0.07732259]
[1693592831926,0.17359574,212.02,211.64,0.07732259]
[1693592832122,0.17359574,212.01,211.64,0.07732259]
[1693592832329,0.17359574,212.03,211.64,0.07732259]
[1693592832629,0.17359574,212.02,211.64,0.07732259]
[1693592832829,0.17359574,212.01,211.64,0.07732259]
[1693592833130,0.17359574,212.0,211.64,0.07732259]
[1693592833326,0.17359574,211.99,211.64,0.07732259]
[1693592833527,0.17359574,211.98,211.64,0.07732259]
[1693592833730,0.17359574,212.03,211.64,0.07732259]
[1693592833931,0.17359574,212.02,211.64,0.07732259]
[1693592834129,0.17359574,212.01,211.64,0.07732259]
[1693592834331,0.17359574,212.0,211.63,0.07732259]
[1693592834525,0.17359574,212.03,211.63,0.07732259]
[1693592834729,0.17359574,212.02,211.63,0.07732259]
[1693592834928,0.17359574,212.01,211.63,0.07732259]
[1693592835229,0.17359574,212.0,211.63,0.07732259]
[1693592835429,0.17359574,211.99,211.63,0.07732259]
[1693592835625,0.17359574,212.02,211.63,0.07732259]
[1693592835830,0.17359574,212.01,211.63,0.07732259]
[1693592836031,0.17359574,212.02,211.63,0.07732259]
[1693592836326,0.17359574,212.01,211.63,0.07732259]
[1693592836535,0.17359574,212.02,211.63,0.07732259]
[1693592836731,0.17359574,212.01,211.62,0.07732259]
[1693592836931,0.17359574,212.0,211.62,0.07732259]
[1693592837126,0.17359574,211.99,211.62,0.07732259]
[1693592837327,0.17359574,211.98,211.62,0.07732259]
[1693592837531,0.17359574,212.02,211.62,0.07732259]
[1693592837732,0.17359574,212.01,211.62,0.07732259]
[1693592838033,0.17359574,212.0,211.62,0.07732259]
[1693592838233,0.17359574,211.99,211.62,0.07732259]
[1693592838533,0.17359574,211.98,211.62,0.07732259]
[1693592838734,0.17359574,211.97,211.62,0.07732259]
[1693592838932,0.17359574,211.96,211.62,0.07732259]
[1693592839133,0.17359574,211.95,211.62,0.07732259]
[1693592839328,0.17359574,212.01,211.62,0.07732259]
[1693592839531,0.17359574,212.0,211.62,0.07732259]
[1693592839732,0.17359574,212.01,211.62,0.07732259]
[1693592839928,0.17359574,212.0,211.62,0.07732259]
[1693592840131,0.17359574,211.99,211.62,0.07732259]
[1693592840330,0.17359574,212.01,211.62,0.07732259]
[1693592840535,0.17359574,212.0,211.62,0.07732259]
[1693592840735,0.17359574,211.99,211.61,0.07732259]
[1693592840936,0.17359574,212.01,211.62,0.07732259]
[1693592841131,0.17359574,212.0,211.62,0.07732259]
[1693592841338,0.17359574,211.99,211.61,0.07732259]
[1693592841536,0.17359574,212.01,211.61,0.07732259]
[1693592841834,0.17359574,212.0,211.61,0.07732259]
[1693592842132,0.17359574,211.99,211.6,0.07732259]
[1693592842332,0.17359574,211.98,211.6,0.07732259]
[1693592842537,0.17359574,211.97,211.6,0.07732259]
[1693592842738,0.17359574,212.0,211.6,0.07732259]
[1693592842938,0.17359574,211.99,211.6,0.07732259]
[1693592843136,0.17359574,212.0,211.6,0.07732259]
[1693592843337,0.17359574,211.99,211.6,0.07732259]
[1693592843534,0.17359574,211.98,211.6,0.07732259]
[1693592843735,0.17359574,212.0,211.6,0.07732259]
[1693592843940,0.17359574,211.99,211.6,0.07732259]
[1693592844131,0.17359574,212.0,211.6,0.07732259]
[1693592844336,5.16367015,212.01,211.6,0.07732259]
[1693592844337,0.17359574,211.99,211.6,0.07732259]
[1693592844531,0.17359574,211.98,211.59,0.07732259]
[1693592844738,0.17359574,211.97,211.59,0.07732259]
[1693592844933,0.17359574,211.96,211.59,0.07732259]
[1693592845142,0.17359574,211.95,211.59,0.07732259]
[1693592845337,0.17359574,212.0,211.59,0.07732259]
[1693592845939,0.17359574,212.0,211.58,0.07732259]
[1693592846135,0.17359574,212.0,211.11,3.60838764]
[1693592846136,0.17359574,212.0,211.53,0.07732259]
[1693592846339,5.16367015,211.95,211.52,0.07732259]
[1693592846536,0.17359574,211.94,211.52,0.07732259]
[1693592846740,0.17359574,211.94,211.5,0.07732259]
[1693592846939,0.17359574,211.94,211.51,0.86858385]
[1693592847541,0.17359574,211.94,211.51,0.94590644]
[1693592847841,0.17359574,211.97,211.52,0.86858385]
[1693592848034,0.17359574,211.93,211.51,0.94590644]
[1693592848238,0.17359574,211.92,211.52,0.86858385]
[1693592848436,0.17359574,211.91,211.52,0.86858385]
[1693592848635,0.17359574,212.0,211.52,0.86858385]
[1693592848839,0.17359574,211.99,211.52,0.86858385]
[1693592849041,0.17359574,211.98,211.52,0.86858385]
[1693592849236,0.17359574,211.97,211.52,0.86858385]
[1693592849439,0.17359574,211.96,211.52,0.86858385]
[1693592849637,5.16367015,212.01,211.52,0.86858385]
[1693592849638,0.17359574,212.0,211.52,0.86858385]
[1693592849841,0.17359574,211.99,211.51,0.86858385]
[1693592850043,0.17359574,211.98,211.52,0.86858385]
[1693592850341,0.17359574,211.97,211.53,0.86858385]
[1693592850536,0.17359574,211.96,211.54,0.86858385]
[1693592850740,0.17359574,212.0,211.51,0.86858385]
[1693592850940,0.17359574,211.99,211.52,0.86858385]
[1693592851141,0.17359574,212.01,211.51,0.86858385]
[1693592851336,0.17359574,212.0,211.52,0.86858385]
[1693592851541,0.17359574,211.99,211.53,0.86858385]
[1693592851739,0.17359574,212.01,211.51,0.86858385]
[1693592851941,0.17359574,212.01,211.49,0.07732259]
[1693592851942,0.17359574,212.0,211.52,0.86858385]
[1693592852138,0.17359574,212.01,211.5,0.86858385]
[1693592852341,0.17359574,212.0,211.51,0.86858385]
[1693592852538,0.17359574,211.99,211.52,0.86858385]
[1693592852842,0.17359574,211.99,211.49,0.07732259]
[1693592852843,0.17359574,211.98,211.53,0.86858385]
[1693592853043,0.17359574,211.97,211.54,0.86858385]
[1693592853343,0.17359574,211.96,211.49,0.07732259]
[1693592853537,0.17359574,211.95,211.5,0.86852292]
[1693592853737,0.17359574,212.02,211.5,0.86852292]
[1693592853940,0.17359574,212.01,211.5,0.86852292]
[1693592854143,0.17359574,212.02,211.5,0.86852292]
[1693592854343,0.17359574,212.01,211.5,0.86852292]
[1693592854642,0.17359574,212.0,211.5,0.86852292]
[1693592854837,0.17359574,212.03,211.5,0.86852292]
[1693592857345,0.17359574,212.02,211.5,0.86852292]
[1693592857646,0.17359574,212.01,211.5,0.86852292]
[1693592857845,0.17359574,212.0,211.5,0.86852292]
[1693592858041,0.17359574,211.99,211.5,0.86852292]
[1693592858242,0.17359574,212.04,211.5,0.86852292]
[1693592858442,0.17359574,212.03,211.5,0.86852292]
[1693592858644,0.17359574,212.02,211.5,0.86852292]
[1693592858847,0.17359574,212.04,211.5,0.86852292]
[1693592859144,0.17359574,212.03,211.5,0.86852292]
[1693592859344,0.17359574,212.04,211.5,0.86852292]
[1693592859539,0.17359574,212.03,211.5,0.86852292]
[1693592859741,0.17359574,212.02,211.5,0.86852292]
[1693592859942,0.17359574,212.01,211.5,0.86852292]
[1693592860140,0.17359574,212.05,211.5,0.86852292]
[1693592862848,0.17359574,212.04,211.5,0.9455584]
[1693592863045,0.17359574,212.03,211.51,0.86852292]
[1693592863244,0.17359574,212.05,211.51,0.86852292]
[1693592863444,0.17359574,212.04,211.51,0.86852292]
[1693592863746,0.17359574,212.03,211.51,0.86852292]
[1693592863943,0.17359574,212.02,211.51,0.86852292]
[1693592864147,0.17359574,212.01,211.51,0.86852292]
[1693592864344,0.17359574,212.05,211.51,0.86852292]
[1693592864542,0.17359574,212.04,211.51,0.86852292]
[1693592864745,0.17359574,212.03,211.51,0.86852292]
[1693592864943,0.17359574,212.02,211.51,0.86852292]
[1693592865149,0.17359574,212.05,211.51,0.86852292]
[1693592865449,0.17359574,212.04,211.51,0.86852292]
[1693592865641,0.17359574,212.05,211.51,0.86852292]
[1693592865844,0.17359574,212.04,211.51,0.86852292]
[1693592866047,0.17359574,212.03,211.51,0.86852292]
[1693592866348,0.17359574,212.02,211.51,0.86852292]
[1693592866547,0.17359574,212.05,211.51,0.86852292]
[1693592866747,0.17359574,212.04,211.51,0.9455584]
[1693592866949,0.17359574,212.03,211.52,0.86852292]
[1693592867141,0.17359574,212.05,211.52,0.86852292]
[1693592867447,0.17359574,212.04,211.52,0.86852292]
[1693592867648,5.31591248,212.05,211.52,0.86852292]
[1693592867848,0.17359574,212.04,211.52,0.86852292]
[1693592869054,0.17359574,212.04,211.52,0.9455584]
[1693592869353,0.17359574,212.04,211.53,0.86852292]
[1693592876054,0.17359574,212.04,211.55,0.07703548]
[1693592876247,0.17359574,212.04,211.54,0.07703548]
[1693592876447,5.14231674,212.02,211.55,0.94552474]
[1693592876653,0.17359574,212.01,211.58,0.07703548]
[1693592876852,0.17359574,212.04,211.59,0.94552474]
[1693592877051,0.17359574,212.03,211.6,0.94552474]
[1693592877251,0.17359574,212.02,211.61,0.94552474]
[1693592877454,0.17359574,212.06,211.62,0.86848926]
[1693592877651,0.17359574,212.05,211.62,0.86848926]
[1693592877853,0.17359574,212.06,211.62,0.86848926]
[1693592878054,0.17359574,212.05,211.6,0.07703548]
[1693592878351,0.17359574,212.04,211.61,0.86820836]
[1693592878656,0.17359574,212.03,211.61,0.94524384]
[1693592878854,0.17359574,212.07,211.62,0.86820836]
[1693592879956,0.17359574,212.07,211.61,0.86820836]
[1693592880155,0.17359574,212.07,211.6,0.07703548]
[1693592880156,0.17359574,212.07,211.62,0.86820194]
[1693592880356,0.17359574,212.07,211.61,0.86820194]
[1693592880549,0.17359574,212.07,211.62,0.86820467]
[1693592880750,0.17359574,212.07,211.61,0.07703548]
[1693592880951,0.17359574,212.07,211.62,0.86820521]
[1693592882557,0.17359574,212.07,211.61,0.86820521]
[1693592882758,0.17359574,212.07,211.62,0.86820246]
[1693592882958,0.17359574,212.07,211.61,0.86820246]
[1693592883161,0.17359574,212.07,211.65,0.07703548]
[1693592883356,0.17359574,212.12,211.66,0.86818276]
[1693592883554,0.17359574,212.11,211.66,0.86818276]
[1693592883754,0.17359574,212.1,211.66,0.86818276]
[1693592883961,0.17359574,212.09,211.66,0.86818276]
[1693592884156,0.17359574,212.08,211.66,0.86818276]
[1693592884358,0.17359574,212.15,211.66,0.86818276]
[1693592884562,0.17359574,212.14,211.67,0.86818276]
[1693592884861,0.17359574,212.13,211.68,0.86818276]
[1693592885056,0.17359574,212.17,211.66,0.86818276]
[1693592885361,0.17359574,212.17,211.65,0.07703548]
[1693592885362,0.17359574,212.16,211.67,0.86792186]
[1693592885562,0.17359574,212.15,211.68,0.86792186]
[1693592885763,0.17359574,212.17,211.66,0.86792186]
[1693592885962,0.17359574,212.16,211.67,0.86792186]
[1693592886262,0.17359574,212.15,211.68,0.86792186]
[1693592886462,0.17359574,212.14,211.69,0.86792186]
[1693592886658,0.17359574,212.2,211.64,0.86792186]
[1693592886865,0.17359574,212.19,211.65,0.86792181]
[1693592887163,0.17359574,212.18,211.66,0.86792181]
[1693592887364,0.17359574,212.2,211.63,0.86792181]
[1693592887565,0.17359574,212.19,211.64,0.86792181]
[1693592887767,0.17359574,212.18,211.65,0.86792181]
[1693592888063,0.17359574,212.17,211.66,0.86792181]
[1693592888259,0.17359574,212.25,211.63,0.86792181]
[1693592888461,0.17359574,212.24,211.64,0.86792181]
[1693592888658,0.17359574,212.23,211.65,0.86792181]
[1693592888860,0.17359574,212.22,211.66,0.86792181]
[1693592889062,0.17359574,212.25,211.67,0.86792181]
[1693592889267,0.17359574,212.24,211.68,0.86792181]
[1693592889460,0.17359574,212.26,211.69,0.86792181]
[1693592889666,0.17359574,212.25,211.7,0.86792181]
[1693592889968,0.17359574,212.24,211.61,0.07703548]
[1693592890168,0.17359574,212.26,211.62,0.86789334]
[1693592890369,0.17359574,212.25,211.62,0.86789334]
[1693592890565,0.17359574,212.24,211.62,0.86789334]
[1693592890763,0.17359574,212.23,211.62,0.86789334]
[1693592890962,0.17359574,212.22,211.62,0.86789334]
[1693592891164,0.17359574,212.27,211.62,0.86789334]
[1693592891468,0.17359574,212.26,211.63,0.86789334]
[1693592891766,0.17359574,212.25,211.64,0.86789334]
[1693592892066,0.17359574,212.24,211.65,0.86789334]
[1693592892259,0.17359574,212.23,211.66,0.86789334]
[1693592892463,0.17359574,212.28,211.61,0.86789334]
[1693592892662,0.17359574,212.27,211.62,0.86789334]
[1693592892865,0.17359574,212.26,211.63,0.86789334]
[1693592893068,0.17359574,212.25,211.64,0.86789334]
[1693592893261,0.17359574,212.24,211.65,0.86789334]
[1693592893462,5.14231674,212.3,211.66,0.86789334]
[1693592893463,0.17359574,212.23,211.66,0.86789334]
[1693592893664,0.17359574,212.22,211.67,0.86789334]
[1693592893864,0.17359574,212.29,211.61,0.86789334]
[1693592894066,0.17359574,212.28,211.62,0.86789334]
[1693592894265,0.17359574,212.3,211.61,0.86789334]
[1693592894470,0.17359574,212.29,211.62,0.86789334]
[1693592894666,0.17359574,212.28,211.63,0.86789334]
[1693592894862,0.17359574,212.3,211.61,0.86789334]
[1693592895065,0.17359574,212.29,211.62,0.86789334]
[1693592895265,0.17359574,212.28,211.63,0.86789334]
[1693592895467,0.17359574,212.3,211.61,0.86789334]
[1693592895667,0.17359574,212.29,211.62,0.86789334]
[1693592895965,0.17359574,212.28,211.63,0.86789334]
[1693592896166,0.17359574,212.27,211.64,0.86789334]
[1693592896365,0.17359574,212.26,211.65,0.86789334]
[1693592896565,5.31591248,212.3,211.6,0.86789334]
[1693592896768,0.17359574,212.29,211.61,0.86789334]
[1693592896967,0.17359574,212.29,211.62,0.86789334]
[1693592897162,0.17359574,212.29,211.6,0.94492882]
[1693592897369,0.17359574,212.29,211.61,0.86789334]
[1693592900071,0.17359574,212.29,211.61,0.94492882]
[1693592900270,0.17359574,212.29,211.62,0.86789334]
[1693592900665,5.31591248,212.29,211.62,0.86789334]
[1693592900870,0.17359574,212.28,211.62,0.86789334]
[1693592901874,0.17359574,212.28,211.62,0.94492882]
[1693592902172,0.17359574,212.28,211.63,0.86789334]
[1693592903671,0.17359574,212.28,211.63,0.94492882]
[1693592903871,5.31591248,212.28,211.64,0.86789334]
[1693592904074,0.17359574,212.27,211.64,0.86789334]
[1693592904773,0.17359574,212.27,211.64,0.94492882]
[1693592904975,0.17359574,212.27,211.65,0.86789334]
[1693592906075,0.17359574,212.27,211.65,0.94492882]
[1693592906275,0.17359574,212.27,211.66,0.86789334]
[1693592906576,0.17359574,212.27,211.67,0.86789334]
[1693592906776,0.17359574,212.27,211.65,0.94492882]
[1693592906974,0.17359574,212.27,211.66,0.86789334]
[1693592906975,5.31591248,212.27,211.66,0.86789334]
[1693592907175,0.17359574,212.26,211.66,0.86789334]
[1693592907375,0.17359574,212.26,211.66,0.94492882]
[1693592907576,5.31591248,212.26,211.67,0.94492882]
[1693592907776,0.17359574,212.25,211.68,0.86789334]
[1693592908775,0.17359574,212.25,211.68,0.94492882]
[1693592908976,5.14231674,212.24,211.69,0.86789334]
[1693592909176,0.17359574,212.23,211.69,0.86789334]
[1693592910375,5.31591248,212.23,211.69,0.86789334]
[1693592910579,0.17359574,212.22,211.7,0.07703548]
[1693592911781,0.17359574,212.22,211.47,1.02713982]
[1693592911782,5.14231674,212.2,211.71,0.07703548]
[1693592911981,0.17359574,212.19,211.71,0.07703548]
[1693592912883,0.17359574,212.19,211.72,0.07703548]
[1693592913282,5.31591248,212.19,211.72,0.07703548]
[1693592913485,0.17359574,212.18,211.72,0.07703548]
[1693592914476,5.31591248,212.18,211.72,0.07703548]
[1693592914683,0.17359574,212.17,211.73,0.07703548]
[1693592915983,0.17359574,212.17,211.66,0.15407097]
[1693592915984,5.31591248,212.17,211.72,0.07703548]
[1693592916183,0.17359574,212.16,211.72,0.07703548]
[1693592916984,5.31591248,212.16,211.72,0.07703548]
[1693592917283,0.17359574,212.15,211.74,0.07703548]
[1693592918382,5.31591248,212.15,211.74,0.07703548]
[1693592918583,0.17359574,212.14,211.74,0.07703548]
[1693592918783,5.31591248,212.14,211.74,0.07703548]
[1693592918984,0.17359574,212.13,211.74,0.07703548]
[1693592919990,0.17359574,212.13,211.73,0.07703548]
[1693592923689,5.31591248,212.13,211.73,0.07703548]
[1693592923889,0.17359574,212.12,211.73,0.07703548]
[1693592925690,0.17359574,212.12,211.72,0.07703548]
[1693592926586,5.31591248,212.12,211.72,0.07703548]
[1693592926784,0.17359574,212.11,211.72,0.07703548]
[1693592928688,5.31591248,212.11,211.72,0.07703548]
[1693592928887,0.17359574,212.1,211.72,0.07703548]
[1693592930490,5.31591248,212.1,211.72,0.07703548]
[1693592930685,0.17359574,212.09,211.72,0.07703548]
[1693592931592,5.31591248,212.09,211.71,0.07703548]
[1693592931791,0.17359574,212.08,211.71,0.07703548]
[1693592935988,0.17359574,212.06,211.69,0.07703548]
[1693592938695,0.17359574,212.06,211.68,0.07703548]
[1693592939090,0.17359574,212.06,211.67,0.07703548]
[1693592939694,5.31591248,212.06,211.67,0.07703548]
[1693592939896,0.17359574,212.05,211.67,0.07703548]
[1693592940197,0.17359574,212.05,211.68,0.07703548]
[1693592940395,0.17359574,212.06,211.68,0.07703548]
[1693592940695,0.17359574,212.05,211.68,0.07703548]
[1693592940893,0.17359574,212.06,211.68,0.07703548]
[1693592941090,0.17359574,212.05,211.68,0.07703548]
[1693592941292,0.17359574,212.06,211.68,0.07703548]
[1693592941492,0.17359574,212.05,211.68,0.07703548]
[1693592941694,0.17359574,212.06,211.68,0.07703548]
[1693592941896,0.17359574,212.05,211.68,0.07703548]
[1693592942090,0.17359574,212.06,211.68,0.07703548]
[1693592942296,0.17359574,212.05,211.68,0.07703548]
[1693592942494,0.17359574,212.06,211.68,0.07703548]
[1693592942794,0.17359574,212.05,211.68,0.07703548]
[1693592942992,0.17359574,212.06,211.68,0.07703548]
[1693592943188,0.17359574,212.05,211.68,0.07703548]
[1693592943389,0.17359574,212.06,211.68,0.07703548]
[1693592943695,0.17359574,212.05,211.68,0.07703548]
[1693592943896,0.17359574,212.06,211.69,0.07703548]
[1693592944094,0.17359574,212.05,211.69,0.07703548]
[1693592944293,0.17359574,212.06,211.69,0.07703548]
[1693592944494,0.17359574,212.05,211.69,0.07703548]
[1693592944691,0.17359574,212.06,211.68,0.07703548]
[1693592944892,0.17359574,212.05,211.69,0.07703548]
[1693592945099,0.17359574,212.06,211.69,0.07703548]
[1693592945291,0.17359574,212.05,211.69,0.07703548]
[1693592945494,0.17359574,212.04,211.69,0.07703548]
[1693592945791,0.17359574,212.03,211.69,0.07703548]
[1693592945998,0.17359574,212.07,211.69,0.07703548]
[1693592947898,0.17359574,212.07,211.7,0.07703548]
[1693592948494,0.17359574,212.06,211.7,0.07703548]
[1693592948698,0.17359574,212.05,211.7,0.07703548]
[1693592948896,0.17359574,212.04,211.7,0.07703548]
[1693592949100,0.17359574,212.08,211.7,0.07703548]
[1693592949300,0.17359574,212.07,211.7,0.07703548]
[1693592949500,0.17359574,212.08,211.7,0.07703548]
[1693592949697,0.17359574,212.07,211.7,0.07703548]
[1693592949895,0.17359574,212.06,211.7,0.07703548]
[1693592950099,0.17359574,212.05,211.7,0.07703548]
[1693592950396,0.17359574,212.04,211.69,0.07703548]
[1693592950597,0.17359574,212.08,211.69,0.07703548]
[1693592950902,0.17359574,212.07,211.69,0.07703548]
[1693592951096,0.17359574,212.08,211.69,0.07703548]
[1693592951300,0.17359574,212.07,211.69,0.07703548]
[1693592951500,0.17359574,212.08,211.69,0.07703548]
[1693592951701,0.17359574,212.07,211.69,0.07703548]
[1693592951896,0.17359574,212.06,211.69,0.07703548]
[1693592952100,0.17359574,212.05,211.69,0.07703548]
[1693592952301,0.17359574,212.04,211.69,0.07703548]
[1693592952501,0.17359574,212.03,211.69,0.07703548]
[1693592952700,0.17359574,212.02,211.7,0.07703548]
[1693592952903,0.17359574,212.09,211.7,0.07703548]
[1693592953098,0.17359574,212.08,211.7,0.07703548]
[1693592953302,0.17359574,212.09,211.7,0.07703548]
[1693592953604,0.17359574,212.08,211.7,0.07703548]
[1693592953804,0.17359574,212.09,211.69,0.07703548]
[1693592953999,0.17359574,212.08,211.69,0.07703548]
[1693592954197,0.17359574,212.09,211.69,0.07703548]
[1693592954398,0.17359574,212.08,211.69,0.07703548]
[1693592954599,0.17359574,212.07,211.69,0.07703548]
[1693592954899,0.17359574,212.06,211.69,0.07703548]
[1693592955102,0.17359574,212.09,211.69,0.07703548]
[1693592955303,0.17359574,212.08,211.69,0.07703548]
[1693592955498,0.17359574,212.07,211.69,0.07703548]
[1693592955803,0.17359574,212.06,211.68,0.07703548]
[1693592956005,0.17359574,212.08,211.68,0.07703548]
[1693592956303,0.17359574,212.07,211.68,0.07703548]
[1693592956503,0.17359574,212.06,211.68,0.07703548]